fUSD/lending_fUSD_20240515
["ID","MTS","AMOUNT","RATE_DAILY","PERIOD"]
[327053963,1715749833783,-151.81,0.0001299,2]
[327053965,1715749833792,-151.81,0.0001299,2]
[327053967,1715749833802,-151.81,0.0001299,2]
[327053969,1715749833813,-151.81,0.0001299,2]
[327053971,1715749833823,-151.81,0.0001299,2]
[327053973,1715749833834,-151.81,0.0001299,2]
[327053975,1715749833849,-151.81,0.0001299,2]
[327053977,1715749833865,-151.81,0.0001299,2]
[327053979,1715749833875,-500.0,0.0001299,2]
[327053981,1715749833886,-14529.3145752,0.00012996,2]
[327053983,1715749833896,-6807.3046853,0.00012996,2]
[327053985,1715749833906,-3005.85209751,0.00012997,2]
[327053987,1715749833918,-1055.3655082,0.00012998,2]
[327053989,1715749833927,-155.0,0.00012998,2]
[327053991,1715749833937,-157.051514,0.00012998,2]
[327053993,1715749833946,-157.051514,0.00012998,2]
[327053995,1715749833956,-173.051514,0.00012998,2]
[327053997,1715749833966,-171.051514,0.00012998,2]
[327053999,1715749833976,-500.0,0.00012998,2]
[327054001,1715749833986,-300.86291282,0.00012999,2]
[327054003,1715749833996,-500.0,0.00012999,2]
[327054005,1715749834006,-500.0,0.00012999,2]
[327054007,1715749834016,-516.06655102,0.00012999,2]
[327054009,1715749834025,-500.0,0.00012999,2]
[327054011,1715749834034,-188.34702727,0.00012999,2]
[327054013,1715749834044,-306.63,0.00012999,2]
[327054015,1715749834054,-384.12161836,0.00012999,2]
[327054017,1715749834063,-403.44466058,0.00012999,2]
[327054019,1715749834072,-500.0,0.00012999,2]
[327054021,1715749834082,-500.0,0.00012999,2]
[327054023,1715749834092,-500.0,0.00012999,2]
[327054025,1715749834102,-500.0,0.00012999,2]
[327054027,1715749834116,-500.0,0.00012999,2]
[327054029,1715749834125,-500.0,0.00012999,2]
[327054031,1715749834134,-500.0,0.00012999,2]
[327054033,1715749834144,-500.0,0.00012999,2]
[327054035,1715749834153,-500.0,0.00012999,2]
[327054037,1715749834170,-444.44424834,0.00012999,2]
[327054038,1715749834180,-500.0,0.00012999,2]
[327054039,1715749834190,-500.0,0.00012999,2]
[327054040,1715749834199,-500.0,0.00012999,2]
[327054041,1715749834208,-500.0,0.00012999,2]
[327054042,1715749834217,-500.0,0.00012999,2]
[327054043,1715749834226,-279.55623197,0.00012999,2]
[327054044,1715749834235,-500.0,0.00012999,2]
[327054045,1715749834244,-595.09381824,0.00012999,2]
[327054046,1715749834253,-500.0,0.00012999,2]
[327054047,1715749834263,-167.72894213,0.00012999,2]
[327054048,1715749834272,-484.01246126,0.00012999,2]
[327054049,1715749834281,-369.0908445,0.00012999,2]
[327054050,1715749834290,-500.0,0.00012999,2]
[327054051,1715749834299,-304.19,0.00012999,2]
[327054052,1715749834308,-500.0,0.00012999,2]
[327054053,1715749834317,-177.082132,0.00012999,2]
[327054054,1715749834327,-500.0,0.00012999,2]
[327054055,1715749834336,-500.0,0.00012999,2]
[327054056,1715749834345,-509.08905621,0.00012999,2]
[327054058,1715749834358,-280.73169011,0.00012999,2]
[327054060,1715749834367,-500.0,0.00012999,2]
[327054062,1715749834376,-500.0,0.00012999,2]
[327054064,1715749834386,-500.0,0.00012999,2]
[327054066,1715749834395,-500.0,0.00012999,2]
[327054068,1715749834404,-500.0,0.00012999,2]
[327054070,1715749834414,-500.0,0.00012999,2]
[327054072,1715749834424,-500.0,0.00012999,2]
[327054074,1715749834435,-500.0,0.00012999,2]
[327054076,1715749834445,-500.0,0.00012999,2]
[327054078,1715749834455,-500.0,0.00012999,2]
[327054080,1715749834464,-500.0,0.00012999,2]
[327054082,1715749834474,-500.0,0.00012999,2]
[327054084,1715749834483,-500.0,0.00012999,2]
[327054086,1715749834492,-301.64130267,0.00012999,2]
[327054088,1715749834502,-500.0,0.00012999,2]
[327054090,1715749834511,-500.0,0.00012999,2]
[327054092,1715749834520,-500.0,0.00012999,2]
[327054094,1715749834530,-500.0,0.00012999,2]
[327054096,1715749834539,-472.80847448,0.00012999,2]
[327054098,1715749834548,-500.0,0.00012999,2]
[327054100,1715749834558,-500.0,0.00012999,2]
[327054102,1715749834568,-500.0,0.00012999,2]
[327054104,1715749834578,-500.0,0.00012999,2]
[327054106,1715749834587,-500.0,0.00012999,2]
[327054108,1715749834597,-500.0,0.00012999,2]
[327054110,1715749834609,-500.0,0.00012999,2]
[327054112,1715749834618,-313.62002064,0.00012999,2]
[327054115,1715749834628,-500.0,0.00012999,2]
[327054117,1715749834637,-500.0,0.00012999,2]
[327054119,1715749834647,-500.0,0.00012999,2]
[327054121,1715749834656,-500.0,0.00012999,2]
[327054123,1715749834666,-500.0,0.00012999,2]
[327054125,1715749834675,-624.73492459,0.00012999,2]
[327054126,1715749834686,-500.0,0.00012999,2]
[327054128,1715749834696,-500.0,0.00012999,2]
[327054130,1715749834705,-500.0,0.00012999,2]
[327054132,1715749834715,-500.0,0.00012999,2]
[327054159,1715749834958,-500.0,0.00012999,2]
[327054161,1715749834968,-500.0,0.00012999,2]
[327054163,1715749834978,-500.0,0.00012999,2]
[327054166,1715749834992,-500.0,0.00012999,2]
[327054168,1715749835002,-162.983,0.00013,2]
[327054170,1715749835012,-543.0,0.00013,2]
[327054172,1715749835022,-251307.43600244,0.00013,2]
[327054174,1715749835032,-343356.91923707,0.00013,2]
[327054177,1715749835049,-138625.25857793,0.00013,2]
[327054179,1715749835061,-538.72781616,0.00013,2]
[327054182,1715749835073,-290.62,0.00013,2]
[327054184,1715749835084,-1552.8314616,0.00013,2]
[327054323,1715749838216,-150.43145641,0.00012999,2]
[327054324,1715749838226,-297.44215902,0.00013,2]
[327054325,1715749838454,-629.41324344,0.00013,2]
[327054346,1715749840254,-3129.26119818,0.00012997,2]
[327054372,1715749843199,-636.57970196,0.00012997,2]
[327054373,1715749843236,-918.18164461,0.00012997,2]
[327054453,1715749846390,-35522.57686931,0.00012997,2]
[327054461,1715750524247,-289.89343108,0.0002739,30]
[327054462,1715750524282,-2111.90421995,0.00027397,30]
[327054463,1715750524326,-150.0,0.00027922,120]
[327054464,1715750524361,-440.0,0.00028,30]
[327054465,1715750524423,-500.0,0.0003,30]
[327054466,1715750524465,-633.08983752,0.0003,120]
[327054467,1715750524511,-220.63,0.00030027,30]
[327054468,1715750524556,-154.10917912,0.000314,30]
[327054469,1715750524591,-1208.0,0.00031579,30]
[327054470,1715750524633,-1411.81064889,0.000329,30]
[327054471,1715750524672,-220.63,0.00033143,30]
[327054472,1715750524706,-885.25,0.00033151,120]
[327054473,1715750524742,-1783.2310812,0.00034,60]
[327054474,1715750524778,-1050.0,0.00035,70]
[327054475,1715750524812,-812.76079883,0.00035,30]
[327054476,1715750524848,-177.96,0.00035959,120]
[327054477,1715750524884,-1050.0,0.00036,80]
[327054478,1715750524917,-150.0,0.00036,30]
[327054479,1715750524952,-220.63,0.00036258,30]
[327054480,1715750524986,-150.47437472,0.00036301,30]
[327054481,1715750525024,-150.47437472,0.00036466,30]
[327054482,1715750525065,-150.47437472,0.00036603,30]
[327054483,1715750525102,-150.47437472,0.00036767,30]
[327054484,1715750525139,-150.47437472,0.00036904,30]
[327054485,1715750525181,-1050.0,0.00037,90]
[327054486,1715750525219,-150.47437472,0.00037068,30]
[327054487,1715750525254,-150.47437472,0.00037233,30]
[327054488,1715750525289,-150.47437472,0.0003737,30]
[327054489,1715750525324,-150.47437472,0.00037534,30]
[327054490,1715750525359,-150.47437472,0.00037671,30]
[327054491,1715750525397,-150.47437472,0.00037836,30]
[327054492,1715750525438,-950.0,0.00038,100]
[327054493,1715750525480,-1000.0,0.00038,31]
[327054494,1715750525521,-150.47437472,0.00038,30]
[327054495,1715750525563,-150.47437472,0.00038137,30]
[327054496,1715750525607,-150.47437472,0.00038301,30]
[327054497,1715750525646,-1000.0,0.00038356,30]
[327054498,1715750525686,-150.47437472,0.00038438,30]
[327054499,1715750525725,-1000.0,0.00038965,30]
[327054500,1715750525765,-1050.0,0.00039,110]
[327054501,1715750525807,-644.1694978,0.00039,40]
[327054502,1715750525843,-823.43827014,0.00039,120]
[327054503,1715750525882,-220.63,0.00039374,30]
[327054504,1715750525923,-167.75595993,0.000395,30]
[327054505,1715750525960,-1000.0,0.00039574,30]
[327054506,1715750526002,-50000.0,0.0004,30]
[327054507,1715750526042,-1850.0,0.0004,120]
[327054508,1715750526078,-1000.0,0.0004,120]
[327054509,1715750526116,-50000.0,0.0004,30]
[327054510,1715750526154,-2020.03,0.0004,120]
[327054511,1715750526193,-500.0,0.0004,60]
[327054512,1715750526228,-175.69,0.0004,120]
[327054513,1715750526266,-829.15,0.0004,120]
[327054514,1715750526304,-322.46,0.0004,120]
[327054515,1715750526345,-1000.0,0.00040183,30]
[327054516,1715750526384,-156.82162244,0.0004044,30]
[327054517,1715750526426,-156.01687293,0.00040741,30]
[327054518,1715750526469,-1000.0,0.00040791,30]
[327054519,1715750526511,-156.63156637,0.00040832,30]
[327054520,1715750526550,-680.39420164,0.000409,60]
[327054521,1715750526587,-5823.91124124,0.00040999,120]
[327054522,1715750526627,-50000.0,0.00041,31]
[327054523,1715750526665,-1650.0,0.00041,120]
[327054524,1715750526703,-1000.0,0.00041,120]
[327054525,1715750526745,-1191.82814803,0.00041,60]
[327054526,1715750526786,-236.05,0.00041,120]
[327054527,1715750526821,-1000.0,0.00041095,30]
[327054528,1715750526857,-1000.0,0.00041095,30]
[327054529,1715750526895,-1000.0,0.00041095,30]
[327054530,1715750526934,-1000.0,0.00041095,30]
[327054531,1715750526975,-1000.0,0.00041095,30]
[327054532,1715750527013,-1000.0,0.00041095,30]
[327054533,1715750527049,-1035.8359965,0.00041095,30]
[327054534,1715750527086,-1021.15883651,0.00041095,30]
[327054535,1715750527122,-1750.55,0.00041095,30]
[327054536,1715750527160,-1750.55,0.00041095,30]
[327054537,1715750527195,-1750.55,0.00041095,30]
[327054538,1715750527231,-1750.55,0.00041095,30]
[327054539,1715750527268,-1750.55,0.00041095,30]
[327054540,1715750527305,-1750.55,0.00041095,30]
[327054541,1715750527344,-1750.55,0.00041095,30]
[327054542,1715750527382,-1750.55,0.00041095,30]
[327054543,1715750527418,-1750.55,0.00041095,30]
[327054544,1715750527452,-1750.55,0.00041095,30]
[327054545,1715750527486,-1750.55,0.00041095,30]
[327054546,1715750527520,-1750.55,0.00041095,30]
[327054547,1715750527555,-1750.55,0.00041095,30]
[327054548,1715750527590,-1750.55,0.00041095,30]
[327054549,1715750527626,-1750.55,0.00041095,30]
[327054550,1715750527662,-1750.55,0.00041095,30]
[327054551,1715750527698,-1750.55,0.00041095,30]
[327054552,1715750527732,-1750.55,0.00041095,30]
[327054553,1715750527767,-1750.55,0.00041095,30]
[327054554,1715750527800,-1750.55,0.00041095,30]
[327054555,1715750527837,-1750.55,0.00041095,30]
[327054556,1715750527881,-1750.55,0.00041095,30]
[327054557,1715750527916,-1750.55,0.00041095,30]
[327054558,1715750527962,-1750.77724373,0.00041095,30]
[327054559,1715750527998,-152.84908022,0.00041325,30]
[327054560,1715750528033,-1000.0,0.000414,30]
[327054561,1715750528068,-151.66846722,0.00041764,30]
[327054562,1715750528102,-152.84908024,0.00041773,30]
[327054563,1715750528138,-156.82162244,0.00041887,30]
[327054564,1715750528172,-152.2004061,0.00041946,30]
[327054565,1715750528209,-50000.0,0.00042,32]
[327054566,1715750528245,-1450.0,0.00042,120]
[327054567,1715750528281,-1000.0,0.00042,120]
[327054568,1715750528315,-1964.22222885,0.00042,30]
[327054569,1715750528350,-468.23778026,0.00042,120]
[327054570,1715750528388,-150000.0,0.00042,50]
[327054571,1715750528425,-1058.0,0.00042,120]
[327054572,1715750528464,-1000.0,0.00042009,30]
[327054573,1715750528503,-156.63156637,0.00042237,30]
[327054574,1715750528541,-156.82162244,0.00042331,30]
[327054575,1715750528580,-1035.0,0.00042399,30]
[327054576,1715750528619,-220.63,0.00042489,30]
[327054577,1715750528902,-160.05497897,0.0004249,30]
[327054578,1715750528937,-1000.0,0.00042618,30]
[327054579,1715750528977,-50000.0,0.00043,33]
[327054580,1715750529012,-1250.0,0.00043,120]
[327054581,1715750529047,-3000.0,0.00043,120]
[327054582,1715750529083,-434.43836693,0.00043,30]
[327054583,1715750529118,-1000.0,0.00043227,30]
[327054584,1715750529155,-1167.98237325,0.00043836,30]
[327054585,1715750529189,-220.0,0.0004389,30]
[327054586,1715750529224,-205.0,0.0004389,30]
[327054587,1715750529257,-357.0,0.0004389,30]
[327054588,1715750529292,-2500.0,0.000439,60]
[327054589,1715750529329,-50000.0,0.00044,34]
[327054590,1715750529366,-2213.65560222,0.00044,60]
[327054591,1715750529404,-950.0,0.00044,120]
[327054592,1715750529440,-607.84717865,0.00044,30]
[327054593,1715750529476,-1000.0,0.00044,120]
[327054594,1715750529512,-1666.283326,0.00044,44]
[327054595,1715750529553,-156.82162244,0.0004425,30]
[327054596,1715750529588,-885.25,0.00044384,120]
[327054597,1715750529628,-1035.0,0.00044631,30]
[327054598,1715750529667,-50000.0,0.00045,35]
[327054599,1715750529710,-700.0,0.00045,120]
[327054600,1715750529743,-3000.0,0.00045,120]
[327054601,1715750529779,-200000.0,0.00045,60]
[327054602,1715750529814,-151.0,0.00045,120]
[327054603,1715750529849,-1782.03383564,0.00045,30]
[327054604,1715750529883,-2168.26783795,0.00045,30]
[327054605,1715750529920,-179.95664657,0.00045,30]
[327054606,1715750529955,-150.0843047,0.00045,120]
[327054607,1715750529989,-40000.0,0.00045,30]
[327054608,1715750530023,-1312.0,0.00045,30]
[327054609,1715750530057,-2000.0,0.00045,120]
[327054610,1715750530091,-196.05635924,0.00045,120]
[327054611,1715750530125,-1013.0,0.00045,60]
[327054612,1715750530159,-156.63156637,0.00045483,30]
[327054613,1715750530203,-220.63,0.00045605,90]
[327054614,1715750530245,-1000.0,0.00045753,120]
[327054615,1715750530278,-1000.0,0.00045753,120]
[327054616,1715750530316,-1000.0,0.00045753,120]
[327054617,1715750530353,-1000.0,0.00045753,120]
[327054618,1715750530389,-1000.0,0.00045753,120]
[327054619,1715750530426,-1000.0,0.00045753,120]
[327054620,1715750530461,-1000.0,0.00045753,120]
[327054621,1715750530495,-1000.0,0.00045753,120]
[327054622,1715750530527,-1000.0,0.00045753,120]
[327054623,1715750530559,-1000.0,0.00045753,120]
[327054624,1715750530594,-1000.0,0.00045753,120]
[327054625,1715750530628,-1000.0,0.00045753,120]
[327054626,1715750530661,-1000.0,0.00045753,120]
[327054627,1715750530695,-1055.21125199,0.00045753,120]
[327054628,1715750530730,-220.0,0.0004593,30]
[327054629,1715750530762,-205.0,0.0004593,30]
[327054630,1715750530796,-357.0,0.0004593,30]
[327054631,1715750530832,-50000.0,0.00046,36]
[327054632,1715750530865,-650.0,0.00046,120]
[327054633,1715750530897,-3000.0,0.00046,120]
[327054634,1715750530931,-200000.0,0.00046,60]
[327054635,1715750530964,-1000.0,0.00046,120]
[327054636,1715750530998,-457.39909841,0.00046,120]
[327054637,1715750531033,-152.20040612,0.00046027,30]
[327054638,1715750531068,-500.0,0.00046027,30]
[327054639,1715750531100,-500.0,0.00046027,30]
[327054640,1715750531138,-151.0,0.00046329,120]
[327054641,1715750531176,-158.0,0.000465,36]
[327054642,1715750531212,-500.0,0.00046575,30]
[327054643,1715750531246,-500.0,0.00046575,30]
[327054644,1715750531279,-2000.0,0.00046575,120]
[327054645,1715750531312,-2000.0,0.00046575,120]
[327054646,1715750531345,-2000.0,0.00046575,120]
[327054647,1715750531379,-2000.0,0.00046575,120]
[327054648,1715750531415,-2000.0,0.00046575,120]
[327054649,1715750531450,-2000.0,0.00046575,120]
[327054650,1715750531483,-2000.0,0.00046575,120]
[327054651,1715750531516,-2000.0,0.00046575,120]
[327054652,1715750531548,-2000.0,0.00046575,120]
[327054653,1715750531581,-2000.0,0.00046575,120]
[327054654,1715750531613,-2000.0,0.00046575,120]
[327054655,1715750531653,-209.27813482,0.00046575,120]
[327054656,1715750531700,-53931.0985039,0.000468,60]
[327054657,1715750531744,-4287.9878,0.000468,90]
[327054658,1715750531789,-156.01687294,0.00046825,30]
[327054659,1715750531835,-150.36214159,0.0004685,30]
[327054660,1715750531875,-5329.76652232,0.0004685,60]
[327054661,1715750531908,-1035.0,0.0004698,30]
[327054662,1715750531944,-50000.0,0.00047,37]
[327054663,1715750531977,-600.0,0.00047,120]
[327054664,1715750532010,-3000.0,0.00047,120]
[327054665,1715750532045,-158.0,0.00047,37]
[327054666,1715750532078,-500.0,0.00047123,30]
[327054667,1715750532114,-500.0,0.00047123,30]
[327054668,1715750532152,-152.19782938,0.00047271,30]
[327054669,1715750532187,-1846.09786884,0.000475,90]
[327054670,1715750532225,-158.0,0.000475,37]
[327054671,1715750532376,-151.0,0.00047644,120]
[327054672,1715750532413,-500.0,0.00047671,30]
[327054673,1715750532450,-500.0,0.00047671,30]
[327054674,1715750532485,-666.0,0.00047945,120]
[327054675,1715750532521,-220.0,0.0004797,30]
[327054676,1715750532558,-205.0,0.0004797,30]
[327054677,1715750532591,-357.0,0.0004797,30]
[327054678,1715750532635,-50000.0,0.00048,38]
[327054679,1715750532679,-200000.0,0.00048,90]
[327054680,1715750532723,-550.0,0.00048,120]
[327054681,1715750532766,-2000.0,0.00048,120]
[327054682,1715750532811,-500.0,0.00048,120]
[327054683,1715750532848,-1000.0,0.00048,120]
[327054684,1715750532891,-183.10874347,0.00048,90]
[327054685,1715750532934,-500.0,0.00048,30]
[327054686,1715750532978,-158.0,0.00048,38]
[327054687,1715750533023,-666.0,0.00048082,120]
[327054688,1715750533059,-616.36776896,0.00048167,120]
[327054689,1715750533104,-500.0,0.00048219,30]
[327054690,1715750533148,-402.8893915,0.00048219,30]
[327054691,1715750533184,-666.0,0.00048219,120]
[327054692,1715750533219,-666.0,0.00048356,120]
[327054693,1715750533255,-666.0,0.00048493,120]
[327054694,1715750533297,-158.0,0.000485,38]
[327054695,1715750533340,-157.568,0.00048528,120]
[327054696,1715750533381,-157.569,0.00048528,120]
[327054697,1715750533415,-157.569,0.00048528,120]
[327054698,1715750533448,-157.568,0.00048528,120]
[327054699,1715750533488,-157.569,0.00048528,120]
[327054700,1715750533525,-666.0,0.0004863,120]
[327054701,1715750533558,-800000.0,0.0004869,120]
[327054702,1715750533594,-220.63,0.0004872,90]
[327054703,1715750533630,-245.20338312,0.00048767,30]
[327054704,1715750533664,-666.0,0.00048767,120]
[327054705,1715750533700,-500.0,0.0004877,30]
[327054706,1715750533735,-500.0,0.0004877,30]
[327054707,1715750533770,-500.0,0.0004877,30]
[327054708,1715750533806,-3012.7216339,0.000488,90]
[327054709,1715750533846,-2500.0,0.000489,60]
[327054710,1715750533886,-666.0,0.00048904,120]
[327054711,1715750533924,-168.24161348,0.00048933,30]
[327054712,1715750533962,-151.0,0.00048959,120]
[327054713,1715750534001,-50000.0,0.00049,39]
[327054714,1715750534036,-500.0,0.00049,120]
[327054715,1715750534071,-2624.0,0.00049,120]
[327054716,1715750534105,-245.14702185,0.00049,60]
[327054717,1715750534141,-158.0,0.00049,39]
[327054718,1715750534178,-162.75181453,0.00049016,120]
[327054719,1715750534214,-666.0,0.00049041,120]
[327054720,1715750534249,-500.0,0.00049044,30]
[327054721,1715750534283,-500.0,0.00049044,30]
[327054722,1715750534318,-272.36084539,0.00049056,120]
[327054723,1715750534354,-162.75181453,0.00049103,120]
[327054724,1715750534389,-272.36084539,0.00049132,120]
[327054725,1715750534426,-162.75181453,0.00049148,120]
[327054726,1715750534461,-272.36084539,0.00049173,120]
[327054727,1715750534499,-666.0,0.00049178,120]
[327054728,1715750534534,-1664.3988243,0.00049315,120]
[327054729,1715750534568,-666.0,0.00049315,120]
[327054730,1715750534603,-500.0,0.00049317,60]
[327054731,1715750534641,-500.0,0.00049317,60]
[327054732,1715750534685,-666.0,0.00049452,120]
[327054733,1715750534722,-1035.0,0.00049452,30]
[327054734,1715750534755,-158.0,0.000495,39]
[327054735,1715750534797,-666.0,0.00049589,120]
[327054736,1715750534832,-323.5357458,0.00049589,120]
[327054737,1715750534873,-500.0,0.0004959,60]
[327054738,1715750534908,-500.0,0.0004959,60]
[327054739,1715750534953,-666.0,0.00049726,120]
[327054740,1715750534995,-722.32210561,0.00049863,120]
[327054741,1715750535032,-500.0,0.00049863,60]
[327054742,1715750535066,-500.0,0.00049863,60]
[327054743,1715750535124,-16259.2656556,0.00049893,120]
[327054744,1715750535159,-406.0,0.00049896,120]
[327054745,1715750535193,-406.0,0.00049986,120]
[327054746,1715750535230,-50000.0,0.0005,40]
[327054747,1715750535266,-450.0,0.0005,120]
[327054748,1715750535301,-150.29230988,0.0005,120]
[327054749,1715750535335,-200000.0,0.0005,120]
[327054750,1715750535369,-1000.0,0.0005,120]
[327054751,1715750535405,-500.0,0.0005,120]
[327054752,1715750535444,-1000.0,0.0005,120]
[327054753,1715750535480,-800000.0,0.0005,120]
[327054754,1715750535520,-1675.0,0.0005,120]
[327054755,1715750535555,-1000.0,0.0005,120]
[327054756,1715750535592,-292.0,0.0005,120]
[327054757,1715750535627,-160.41649817,0.0005,30]
[327054758,1715750535664,-340.21884273,0.0005,120]
[327054759,1715750535703,-158.0,0.0005,40]
[327054760,1715750535737,-177.96,0.0005,120]
[327054761,1715750535769,-196.056359,0.0005,120]
[327054762,1715750535804,-24475.0,0.0005,120]
[327054763,1715750535840,-2433.4,0.0005,120]
[327054764,1715750535876,-2433.4,0.0005,120]
[327054765,1715750535910,-2433.4,0.0005,120]
[327054766,1715750535949,-2433.4,0.0005,120]
[327054767,1715750535988,-2433.4,0.0005,120]
[327054768,1715750536032,-2433.4,0.0005,120]
[327054769,1715750536064,-2433.4,0.0005,120]
[327054770,1715750536098,-2433.4,0.0005,120]
[327054771,1715750536132,-2433.4,0.0005,120]
[327054772,1715750536168,-2433.4,0.0005,120]
[327054773,1715750536203,-2433.4,0.0005,120]
[327054774,1715750536238,-2433.4,0.0005,120]
[327054775,1715750536271,-2433.4,0.0005,120]
[327054776,1715750536307,-2433.4,0.0005,120]
[327054777,1715750536340,-2433.4,0.0005,120]
[327054778,1715750536376,-2433.4,0.0005,120]
[327054779,1715750536412,-2433.4,0.0005,120]
[327054780,1715750536449,-2433.4,0.0005,120]
[327054781,1715750536483,-2433.4,0.0005,120]
[327054782,1715750536522,-2433.4,0.0005,120]
[327054783,1715750536558,-2433.4,0.0005,120]
[327054784,1715750536592,-2433.4,0.0005,120]
[327054785,1715750536626,-2433.4,0.0005,120]
[327054786,1715750536659,-2433.52830708,0.0005,120]
[327054787,1715750536696,-220.0,0.0005001,30]
[327054788,1715750536730,-205.0,0.0005001,30]
[327054789,1715750536765,-357.0,0.0005001,30]
[327054790,1715750536798,-500.0,0.00050137,60]
[327054791,1715750536832,-500.0,0.00050137,60]
[327054792,1715750536869,-291.59607775,0.000502,120]
[327054793,1715750536906,-151.0,0.00050274,120]
[327054794,1715750536939,-500.0,0.0005041,60]
[327054795,1715750536975,-500.0,0.0005041,60]
[327054796,1715750537010,-1002.0,0.000505,30]
[327054797,1715750537045,-158.0,0.000505,40]
[327054798,1715750537082,-156.82162248,0.00050502,60]
[327054799,1715750537116,-500.0,0.00050683,60]
[327054800,1715750537148,-500.0,0.00050683,60]
[327054801,1715750537184,-60917.215385,0.00050684,30]
[327054802,1715750537215,-597748.30949306,0.000509,30]
[327054803,1715750537249,-242777.81341741,0.000509,30]
[327054804,1715750537283,-500.0,0.00050956,60]
[327054805,1715750537317,-862.61,0.00050956,60]
[327054806,1715750537351,-500.0,0.00050972,32]
[327054807,1715750537385,-500.0,0.00051,120]
[327054808,1715750537431,-14600.53276493,0.00051,120]
[327054809,1715750537480,-20000.0,0.00051,30]
[327054810,1715750537522,-500.1911702,0.00051,30]
[327054811,1715750537566,-2757.0,0.00051,120]
[327054812,1715750537608,-100001.0,0.00051,40]
[327054813,1715750537646,-400.0,0.00051,120]
[327054814,1715750537679,-2000.0,0.00051,30]
[327054815,1715750537720,-1000.0,0.00051,120]
[327054816,1715750537761,-1000.0,0.00051,120]
[327054817,1715750537801,-1000.0,0.00051,120]
[327054818,1715750537834,-1000.0,0.00051,120]
[327054819,1715750537868,-1000.0,0.00051,120]
[327054820,1715750537900,-1000.0,0.00051,120]
[327054821,1715750537935,-1000.0,0.00051,120]
[327054822,1715750537969,-1000.0,0.00051,120]
[327054823,1715750538000,-1000.0,0.00051,120]
[327054824,1715750538033,-1000.0,0.00051,120]
[327054825,1715750538067,-3657.0,0.00051,120]
[327054826,1715750538101,-730.55,0.00051,120]
[327054827,1715750538137,-7065.80469764,0.00051,30]
[327054828,1715750538179,-158.0,0.00051,40]
[327054829,1715750538213,-3898.8159888,0.00051014,120]
[327054830,1715750538246,-4046.0000025,0.00051014,120]
[327054831,1715750538281,-500.0,0.0005123,60]
[327054832,1715750538316,-152.40603931,0.0005147,60]
[327054833,1715750538354,-500.0,0.000515,120]
[327054834,1715750538390,-2000.0,0.000515,30]
[327054835,1715750538424,-158.0,0.000515,40]
[327054836,1715750538456,-500.0,0.00051503,60]
[327054837,1715750538490,-407.45778287,0.00051539,40]
[327054838,1715750538527,-151.0,0.00051589,120]
[327054839,1715750538561,-1138.21,0.00051726,120]
[327054840,1715750538594,-1138.21,0.0005178,120]
[327054841,1715750538626,-156.6315664,0.00051786,60]
[327054842,1715750538658,-60917.215385,0.000518,30]
[327054843,1715750538691,-1138.21,0.00051835,120]
[327054844,1715750538733,-220.63,0.00051836,90]
[327054845,1715750538778,-2646.98981054,0.00051878,70]
[327054846,1715750538825,-1138.21,0.0005189,120]